Cogmind - Beta 16 @@@ ROGUE MODE // 2026.01.22 @ 22:41:45 Player: Artackni Result: Escaped! Performance ------------- Evolutions (9) 4500 Regions Visited (15) 3000 Robots Destroyed (17) 85 Value Destroyed (357) 357 Prototype IDs (28) 560 Alien Tech Used (0) 0 Bonus (14708) 14708 TOTAL SCORE: 23210 Bonus ------- Entered DSFs 1000 Aligned with FarCom 300 Win 3000 Win Speed 10408 Cogmind --------- Core Integrity 1391/1600 Matter 260/300 Energy 148/150 System Corruption 9% Temperature Cool (4) Movement Flying (42) Location To Epsilon Eridani Parts ------- > --- POWER (2) -------- Micro Fission Core > --- PROPULSION (8) --- Impulse Thruster Array Impulse Thruster Array Improved Q-thruster > --- UTILITY (13) ----- Advanced Weight Redist. System Advanced Visual Processing Unit Advanced Signal Interpreter Armor Integrity Analyzer Graphene Brace System Shield System Shield System Shield Improved System Shield Advanced System Shield > --- WEAPON (2) ------- Longsword +1 > --- INVENTORY (5) ---- Quantum Reactor Energy Well (350) System Shield Advanced EMP Blaster Power Sword Peak State ------------ > --- POWER ------------ Micro Fission Core > --- PROPULSION ------- Field Propulsion Array Impulse Thruster Array Impulse Thruster Array Improved Q-thruster > --- UTILITY ---------- Advanced Weight Redist. System Advanced Visual Processing Unit Advanced Signal Interpreter Armor Integrity Analyzer Graphene Brace System Shield System Shield System Shield Improved System Shield Advanced System Shield > --- WEAPON ----------- Longsword +1 > --- INVENTORY -------- Quantum Reactor Energy Well System Shield Advanced EMP Blaster Power Sword [Rating: 114] Favorites ----------- Power Light Fission Core Engine F-cell Engine Power Core Light Fission Core Propulsion VTOL Module Flight Unit VTOL Module Utility System Shield Device Advanced Weight Redist. System Storage Energy Well Processor Armor Integrity Analyzer Hackware System Shield Weapon Power Sword Ballistic Gun Assault Rifle Launcher Rocket Launcher Impact Weapon Maul Slashing Weapon Power Sword Build | -11 -10 -10 -10 -9 -8 -8 -7 -6 -5 -4 -4 -3 -2 -2 -1 ------- Run | Yrd Mat Min Exi Min Mat Sto Fac Fac Fac Fac DSF Res Res DSF Acc Slots Evolved 18 | . . . . . 4 . 2 2 2 2 . 2 2 . 2 Power 1 | . . . . . . . . . . 1 . . . . . Propulsion 6 | . . . . . 2 . 1 . 1 1 . . . . 1 Utility 11 | . . . . . 2 . 1 2 1 . . 2 2 . 1 Weapon . | . . . . . . . . . . . . . . . . Parts Attached 45 | 2 2 . . 1 2 1 3 7 6 6 . . 6 1 8 Power 3 | . . . . . . . . 2 . 1 . . . . . Engine 1 | . . . . . . . . 1 . . . . . . . Core 2 | . . . . . . . . 1 . 1 . . . . . Reactor . | . . . . . . . . . . . . . . . . Propulsion 15 | . . . . . 1 . 2 . 4 3 . . . 1 4 Treads . | . . . . . . . . . . . . . . . . Leg . | . . . . . . . . . . . . . . . . Wheel . | . . . . . . . . . . . . . . . . Hover . | . . . . . . . . . . . . . . . . Flight 15 | . . . . . 1 . 2 . 4 3 . . . 1 4 Utility 21 | 1 1 . . . . . 1 4 2 2 . . 6 . 4 Device 9 | 1 . . . . . . . 2 1 1 . . 3 . 1 Storage 1 | . . . . . . . . . . 1 . . . . . Processor 6 | . 1 . . . . . 1 2 . . . . 2 . . Hackware 5 | . . . . . . . . . 1 . . . 1 . 3 Protection . | . . . . . . . . . . . . . . . . Artifact . | . . . . . . . . . . . . . . . . Weapon 6 | 1 1 . . 1 1 1 . 1 . . . . . . . Energy Gun . | . . . . . . . . . . . . . . . . Energy Cannon . | . . . . . . . . . . . . . . . . Ballistic Gun 1 | 1 . . . . . . . . . . . . . . . Ballistic Cannon . | . . . . . . . . . . . . . . . . Launcher 2 | . . . . 1 . 1 . . . . . . . . . Special Weapon . | . . . . . . . . . . . . . . . . Impact Weapon 1 | . 1 . . . . . . . . . . . . . . Slashing Weapon 2 | . . . . . 1 . . 1 . . . . . . . Piercing Weapon . | . . . . . . . . . . . . . . . . Special Melee Weapon . | . . . . . . . . . . . . . . . . Unidentified Prototypes 5 | . . . . . . 1 1 1 . . . . 1 . 1 Parts Lost 14 | . . . . . . 1 . . 1 . . . 2 2 8 Power . | . . . . . . . . . . . . . . . . Propulsion 11 | . . . . . . 1 . . 1 . . . 2 2 5 Utility 3 | . . . . . . . . . . . . . . . 3 Weapon . | . . . . . . . . . . . . . . . . Highest Loss Streak 4 | . . . . . . 1 . . 1 . . . 2 4 3 To Critical Strikes . | . . . . . . . . . . . . . . . . Average Backups 4 | . 1 3 4 5 5 4 5 4 4 4 4 4 4 3 4 Power 1 | . . . 1 2 2 2 2 2 2 2 1 1 1 1 1 Propulsion . | . . . . . . . . . . . . 1 1 . . Utility . | . . . . . . . . . . . . . . . 1 Weapon 2 | . 1 3 3 3 3 2 3 2 1 2 2 2 2 2 2 Tool/Special . | . . . . . . . . . . . . . . . . Unused Backups 6 | . . . 1 . . . . . 1 . 1 . 1 . 2 Power 4 | . . . . . . . . . 1 . 1 . 1 . 1 Propulsion . | . . . . . . . . . . . . . . . . Utility 1 | . . . . . . . . . . . . . . . 1 Weapon 1 | . . . 1 . . . . . . . . . . . . Tool/Special . | . . . . . . . . . . . . . . . . Average Slot Usage (%) 57 | . 35 25 28 29 18 15 19 49 75 82 94 85 87 88 68 Core 4 | . . . . . . . . 4 5 6 10 9 8 8 6 Flight 13 | . . . . . . . 7 13 23 29 36 33 30 23 12 Device 14 | . 11 11 14 14 9 3 . 5 13 20 21 19 21 26 17 Storage 1 | . . . . . . . . . . 3 5 4 4 4 2 Processor 13 | . 9 14 14 14 9 9 11 18 23 12 10 9 9 13 12 Hackware 6 | . . . . . . . . . 2 5 5 4 6 8 14 Slashing Weapon 3 | . . . . . . 2 . 5 5 5 5 4 4 4 4 Peak Build Rating 114 | 2 5 3 5 7 15 15 17 41 53 80 81 81 103 107 114 Average Rating 56 | 1 3 2 4 5 7 5 11 32 47 62 80 81 92 103 94 On Entrance 36 | . 2 4 3 5 5 15 4 17 41 53 80 81 81 94 98 Avg Prop Armor Cover (%) 5 | . . . . . . . . . . 6 6 6 6 . 2 Naked Turns . | . . . . . . . . . . . . . . . . Heaviest Build 27 | 3 3 1 1 1 4 4 . 13 14 25 25 25 27 27 27 Greatest Support 65 | 3 3 3 3 3 5 5 11 20 30 39 27 27 41 44 65 Greatest Overweight (x) . | . . . . . . . . . . . . . . . . Average Overweight (x) . | . . . . . . . . . . . . . . . . Largest Inventory Capacity 5 | 5 5 5 5 5 5 5 5 5 5 5 5 5 5 5 5 Average Capacity 5 | 5 5 5 5 5 5 5 5 5 5 5 5 5 5 5 5 Most Carried 5 | . 3 4 5 5 5 5 5 5 5 5 5 5 5 3 5 Average Carried 4 | . 2 3 4 4 4 4 5 4 4 4 4 5 4 3 4 Final Capacity 5 | 5 5 5 5 5 5 5 5 5 5 5 5 5 5 5 5 Final Carried 5 | . 3 3 5 5 4 5 5 4 5 4 5 5 5 3 5 Class Distribution -------------------- 39% | Mutant 21% | Scavenger-Sprinter 20% | Hacker-Sprinter 19% | Hacker-Mutant Dominant Class ---------------- Mutant | -10/Materials Mutant | -10/Mines Mutant | -10/Exiles Mutant | -9/Mines Mutant | -8/Materials Mutant | -8/Storage Mutant | -7/Factory Mutant | -6/Factory Scavenger-Sprinter | -5/Factory Scavenger-Sprinter | -4/Factory Scavenger-Sprinter | -4/DSF Scavenger-Sprinter | -3/Research Scavenger-Sprinter | -2/Research Scavenger-Sprinter | -2/DSF Hacker-Mutant | -1/Access Resources | -11 -10 -10 -10 -9 -8 -8 -7 -6 -5 -4 -4 -3 -2 -2 -1 ----------- Run | Yrd Mat Min Exi Min Mat Sto Fac Fac Fac Fac DSF Res Res DSF Acc Matter Collected 681 | 229 . . . . . . . 233 69 40 . . 90 . 20 Remotely 125 | . . . . . . . . . . 20 . . 85 . 20 Salvage Created 544 | 23 . . . 2 . . . 241 104 112 . . 35 . 27 Parts 33 | 3 . . . 1 . . . 8 8 6 . . 3 . 4 Haulers Intercepted 2 | . . . . . . . . 2 . . . . . . . Recyclers Shooed . | . . . . . . . . . . . . . . . . Parts Field Recycled . | . . . . . . . . . . . . . . . . Retrieved Matter . | . . . . . . . . . . . . . . . . Parts Self-Destructed . | . . . . . . . . . . . . . . . . Prevented . | . . . . . . . . . . . . . . . . Parts Restored . | . . . . . . . . . . . . . . . . Kills | -11 -10 -10 -10 -9 -8 -8 -7 -6 -5 -4 -4 -3 -2 -2 -1 ------- Run | Yrd Mat Min Exi Min Mat Sto Fac Fac Fac Fac DSF Res Res DSF Acc Combat Hostiles Destroyed 8 | . . . . 4 . . . . 4 . . . . . . Melee 1 | . . . . . . . . . 1 . . . . . . AOE 7 | . . . . 4 . . . . 3 . . . . . . Classes Destroyed 7 | 1 . . . 1 . . . 3 . 1 . . 1 . . Worker 1 | . . . . . . . . 1 . . . . . . . Tunneler 2 | 1 . . . . . . . 1 . . . . . . . Hauler 2 | . . . . . . . . 2 . . . . . . . Recycler 1 | . . . . . . . . . . 1 . . . . . Operator 2 | . . . . . . . . 1 . . . . . . 1 Watcher 1 | . . . . . . . . . . . . . 1 . . Swarmer 8 | . . . . 4 . . . . 4 . . . . . . Best Kill Streak 4 | 1 . . . 4 . . . 2 4 1 . . 1 . 1 Combat Bots Only 4 | . . . . 4 . . . . 4 . . . . . . Max Kills in Single Turn 3 | 1 . . . 2 . . . 1 3 1 . . 1 . 1 Gunslinging . | . . . . . . . . . . . . . . . . Exploded 3 | . . . . 2 . . . . 3 . . . . . . Melee 1 | . . . . . . . . . 1 . . . . . . Uniques/NPCs Destroyed . | . . . . . . . . . . . . . . . . Combat | -11 -10 -10 -10 -9 -8 -8 -7 -6 -5 -4 -4 -3 -2 -2 -1 -------- Run | Yrd Mat Min Exi Min Mat Sto Fac Fac Fac Fac DSF Res Res DSF Acc Hostile Shots Fired 213 | . 3 . . 7 . 42 . . 14 . 1 . 1 13 132 Missed 128 | . . . . 3 . 21 . . 9 . 1 . . 9 85 Hits 85 | . 3 . . 4 . 21 . . 5 . . . 1 4 47 Melee 2 | . . . . . . . . . . . . . . 2 . Projectile 83 | . 3 . . 4 . 21 . . 5 . . . 1 2 47 AOE 2 | . . . . . . . . . . . . . . 2 . Critical Strikes 4 | . . . . . . 1 . . . . . . . 1 2 Actively Blocked 3 | . . . . . . . . . . . . . . 1 2 Damage Taken 1739 | . 33 . . 41 . 369 . . 79 . . . 91 180 946 Core 632 | . 23 . . 16 . 344 . . 34 . . . . 6 209 Absorbed by Shields 29 | . . . . . . . . . . . . . . . 29 Core Remaining (%) 90 | 100 . . . 84 . 37 100 100 96 . 100 100 . 99 86 Volleys Fired 10 | 3 . . . 5 . . . . 2 . . . . . . Largest 1 | 1 . . . 1 . . . . 1 . . . . . . Hottest 36 | 20 . . . 33 . . . . 36 . . . . . . Shots Fired 10 | 3 . . . 5 . . . . 2 . . . . . . Gun 3 | 3 . . . . . . . . . . . . . . . Cannon . | . . . . . . . . . . . . . . . . Launcher 7 | . . . . 5 . . . . 2 . . . . . . Special . | . . . . . . . . . . . . . . . . Kinetic 3 | 3 . . . . . . . . . . . . . . . Thermal . | . . . . . . . . . . . . . . . . Explosive 5 | . . . . 5 . . . . . . . . . . . Electromagnetic 2 | . . . . . . . . . 2 . . . . . . Robot Hit Streak 3 | 1 . . . 3 . . . . . . . . . . . Robot Miss Streak 2 | 2 . . . 1 . . . . 2 . . . . . . Penetration Max . | . . . . . . . . . . . . . . . . Secondary Targets . | . . . . . . . . . . . . . . . . Shots Hit Robots 23 | 1 . . . 4 . . . 9 2 3 . . 2 . 2 Core Hits 18 | 1 . . . 4 . 1 . 4 5 1 . . 1 . 1 Critical Kills . | . . . . . . . . . . . . . . . . Critical Parts Destroyed . | . . . . . . . . . . . . . . . . Critical Strikes 1 | . . . . . . . . 1 . . . . . . . Sever 1 | . . . . . . . . 1 . . . . . . . Melee Attacks 90 | . . . . . . 3 . 14 6 10 . . 10 . 47 Impact . | . . . . . . . . . . . . . . . . Slashing 90 | . . . . . . 3 . 14 6 10 . . 10 . 47 Piercing . | . . . . . . . . . . . . . . . . Sneak Attacks 7 | . . . . . . . . 4 1 1 . . 1 . . Combat Hostiles 1 | . . . . . . . . . 1 . . . . . . Follow-up Attacks . | . . . . . . . . . . . . . . . . Damage Inflicted 1718 | 15 . . . 415 . 2 . 588 195 199 . . 160 . 144 Guns 15 | 15 . . . . . . . . . . . . . . . Cannons . | . . . . . . . . . . . . . . . . Explosions 493 | . . . . 415 . . . . 78 . . . . . . Melee 1208 | . . . . . . . . 588 117 199 . . 160 . 144 Ramming 2 | . . . . . . 2 . . . . . . . . . Kinetic 15 | 15 . . . . . . . . . . . . . . . Thermal . | . . . . . . . . . . . . . . . . Explosive 415 | . . . . 415 . . . . . . . . . . . Electromagnetic 78 | . . . . . . . . . 78 . . . . . . Impact . | . . . . . . . . . . . . . . . . Slashing 1208 | . . . . . . . . 588 117 199 . . 160 . 144 Piercing . | . . . . . . . . . . . . . . . . Highest Corruption 9 | . . . . . . 3 . . . . . . 4 9 9 Average Corruption 2 | . . . . . . 3 . . . . . . 4 6 2 Corruption Purged . | . . . . . . . . . . . . . . . . Corruption Blocked 7 | . . . . . . . . . 7 . . . . . . Effects 7 | . . . . . . 2 . . . . . . 1 1 3 Message Errors 3 | . . . . . . . . . . . . . . 1 2 Matter Fused 1 | . . . . . . 1 . . . . . . . . . Heat Flow Errors 1 | . . . . . . . . . . . . . 1 . . Energy Discharges 1 | . . . . . . 1 . . . . . . . . . Data Loss (major) 1 | . . . . . . . . . . . . . . . 1 Overload Shots . | . . . . . . . . . . . . . . . . Overflow Damage 269 | . . . . 32 . . . 134 . 40 . . 30 . 33 Projectiles . | . . . . . . . . . . . . . . . . Explosions 32 | . . . . 32 . . . . . . . . . . . Melee 237 | . . . . . . . . 134 . 40 . . 30 . 33 Knockbacks . | . . . . . . . . . . . . . . . . Impact . | . . . . . . . . . . . . . . . . Kinetic . | . . . . . . . . . . . . . . . . Secondary . | . . . . . . . . . . . . . . . . Self-Inflicted Damage 1 | . . . . . . 1 . . . . . . . . . Shots . | . . . . . . . . . . . . . . . . Rammed 1 | . . . . . . 1 . . . . . . . . . Targets Rammed 1 | . . . . . . 1 . . . . . . . . . Kicked . | . . . . . . . . . . . . . . . . Crushed . | . . . . . . . . . . . . . . . . Highest Temperature 288 | . . . . 7 . . . . 19 3 . . 288 . 3 Average Temperature 88 | . . . . 7 . . . . 12 2 . . 230 . 3 Received Heat Transfer 198 | . 18 . . . . 63 . . . . . . . . 117 Siege Activations . | . . . . . . . . . . . . . . . . Martial Activations . | . . . . . . . . . . . . . . . . Shielding Activations . | . . . . . . . . . . . . . . . . Robots Disrupted . | . . . . . . . . . . . . . . . . Combat Hostiles . | . . . . . . . . . . . . . . . . Robots Corrupted . | . . . . . . . . . . . . . . . . Combat Hostiles . | . . . . . . . . . . . . . . . . Parts Fried . | . . . . . . . . . . . . . . . . Impact Corruptions . | . . . . . . . . . . . . . . . . Robots Melted . | . . . . . . . . . . . . . . . . Combat Hostiles . | . . . . . . . . . . . . . . . . Parts Melted . | . . . . . . . . . . . . . . . . Heat Transferred . | . . . . . . . . . . . . . . . . Parts Sabotaged . | . . . . . . . . . . . . . . . . Parts Stolen . | . . . . . . . . . . . . . . . . Parts Stripped . | . . . . . . . . . . . . . . . . Power Chain Reactions . | . . . . . . . . . . . . . . . . Alert | -11 -10 -10 -10 -9 -8 -8 -7 -6 -5 -4 -4 -3 -2 -2 -1 ------- Run | Yrd Mat Min Exi Min Mat Sto Fac Fac Fac Fac DSF Res Res DSF Acc Maximum Alert Level 1 | . . . . . . . . . . . . . . . 1 Low Security (%) 86 | 100 100 100 . 100 100 100 100 100 100 100 100 100 100 100 65 Level 1 13 | . . . . . . . . . . . . . . . 34 Level 2 . | . . . . . . . . . . . . . . . . Level 3 . | . . . . . . . . . . . . . . . . Level 4 . | . . . . . . . . . . . . . . . . Level 5 . | . . . . . . . . . . . . . . . . High Security . | . . . . . . . . . . . . . . . . Max Security . | . . . . . . . . . . . . . . . . Peak Influence 260 | 5 . . . 123 43 80 31 23 70 24 11 6 37 12 260 Initial 43 | . . . . . 43 17 31 . 2 18 11 6 . 12 . Average 58 | 1 . . . 23 43 23 16 7 42 15 11 4 12 6 118 Influence Increases 1130 | 5 . . . 123 . 99 . 74 128 48 . . 67 . 586 Destroy 0b10 Robot/C 160 | . . . . 80 . . . . 80 . . . . . . Destroy 0b10 Robot/NC 45 | 5 . . . . . . . 25 . 5 . . 5 . 5 Destroy Leader 26 | . . . . 10 . . . 4 10 . . . 2 . . Successful Hack 61 | . . . . . . 7 . 14 . 5 . . . . 35 Disable Machine 105 | . . . . . . 15 . 30 . 30 . . 15 . 15 Destroy Structure 193 | . . . . 33 . 2 . 1 8 8 . . 15 . 126 Partial Spotted 120 | . . . . . . . . . . . . . 30 . 90 Lose Combat Pursuer 420 | . . . . . . 75 . . 30 . . . . . 315 Influence Decreases 907 | 5 . . . 10 70 72 69 70 95 70 5 11 50 17 363 Entered New Map 174 | . . . . . 70 26 39 1 3 20 5 5 . 5 . Time Decay 601 | 5 . . . 10 . 36 30 69 82 50 . 6 30 . 283 Lost Part 132 | . . . . . . 10 . . 10 . . . 20 12 80 Squads Dispatched 14 | . 2 . . . . 1 . 2 1 . . . . 1 7 Investigation 2 | . . . . . . 1 . 1 . . . . . . . Extermination 6 | . . . . . . . . . . . . . . . 6 Reinforcement 6 | . 2 . . . . . . 1 1 . . . . 1 1 Assault . | . . . . . . . . . . . . . . . . Garrison . | . . . . . . . . . . . . . . . . Intercept . | . . . . . . . . . . . . . . . . Searches Triggered . | . . . . . . . . . . . . . . . . Construction Impeded 1 | . . . . . . . . . 1 . . . . . . Haulers Reinforced 1 | . . . . . . . . 1 . . . . . . . Active Scanning Responses . | . . . . . . . . . . . . . . . . Cargo Convoy Interrupts . | . . . . . . . . . . . . . . . . Stealth | -11 -10 -10 -10 -9 -8 -8 -7 -6 -5 -4 -4 -3 -2 -2 -1 --------- Run | Yrd Mat Min Exi Min Mat Sto Fac Fac Fac Fac DSF Res Res DSF Acc Distress Signals 6 | . 1 . . . . 1 . . 1 . . . . . 3 Communications Jammed . | . . . . . . . . . . . . . . . . Distress Signals . | . . . . . . . . . . . . . . . . Times Spotted 82 | . 3 . . 4 . 11 . 1 13 1 1 . 1 6 41 Peak Tracking Total 11 | . 2 . . 4 . 10 . 1 6 . 1 . 2 6 11 Tactical Retreats 14 | . . . . . . 2 . . 1 . . . . . 11 ECM-based Alert Blocks 8 | . . . . . . . . . . . . . . . 8 Traps | -11 -10 -10 -10 -9 -8 -8 -7 -6 -5 -4 -4 -3 -2 -2 -1 ------- Run | Yrd Mat Min Exi Min Mat Sto Fac Fac Fac Fac DSF Res Res DSF Acc Traps Triggered 9 | . . . . . . 4 . . . . . . 1 . 4 Indirectly . | . . . . . . . . . . . . . . . . Trap Hack Attempts . | . . . . . . . . . . . . . . . . Triggered . | . . . . . . . . . . . . . . . . Disarmed . | . . . . . . . . . . . . . . . . Reprogrammed . | . . . . . . . . . . . . . . . . Reused . | . . . . . . . . . . . . . . . . Traps Extracted . | . . . . . . . . . . . . . . . . Installed . | . . . . . . . . . . . . . . . . Triggered . | . . . . . . . . . . . . . . . . Machines | -11 -10 -10 -10 -9 -8 -8 -7 -6 -5 -4 -4 -3 -2 -2 -1 ---------- Run | Yrd Mat Min Exi Min Mat Sto Fac Fac Fac Fac DSF Res Res DSF Acc Machines Disabled 7 | . . . . . . 1 . 2 . 2 . . 1 . 1 Max in Single Turn 1 | . . . . . . 1 . 1 . 1 . . 1 . 1 Machines Repaired . | . . . . . . . . . . . . . . . . Machines Dismantled . | . . . . . . . . . . . . . . . . Machines Sabotaged . | . . . . . . . . . . . . . . . . Overloaded Fab Kills . | . . . . . . . . . . . . . . . . Hacking | -11 -10 -10 -10 -9 -8 -8 -7 -6 -5 -4 -4 -3 -2 -2 -1 --------- Run | Yrd Mat Min Exi Min Mat Sto Fac Fac Fac Fac DSF Res Res DSF Acc Machines Accessed 27 | . . . 1 . . 4 1 6 2 4 . 1 1 . 7 Terminals 22 | . . . . . . 4 1 3 1 4 . 1 1 . 7 Fabricators 2 | . . . . . . . . 2 . . . . . . . Repair Stations . | . . . . . . . . . . . . . . . . Recycling Units 1 | . . . . . . . . 1 . . . . . . . Scanalyzers 1 | . . . . . . . . . 1 . . . . . . Garrison Access . | . . . . . . . . . . . . . . . . Total Hacks 68 | . . . 1 . . 11 1 14 6 8 . 2 3 . 22 Successful 13 | . . . 1 . . 2 . 3 1 1 . . 1 . 4 Failed 54 | . . . . . . 9 1 11 4 7 . 2 2 . 18 Catastrophic 10 | . . . . . . 1 1 2 . 2 . . . . 4 Database Lockouts 1 | . . . . . . . . . 1 . . . . . . Manual 40 | . . . 1 . . 3 1 13 4 7 . 2 . . 9 Terminals 59 | . . . . . . 11 1 8 4 8 . 2 3 . 22 Fabricators 4 | . . . . . . . . 4 . . . . . . . Repair Stations . | . . . . . . . . . . . . . . . . Recycling Units 2 | . . . . . . . . 2 . . . . . . . Scanalyzers 2 | . . . . . . . . . 2 . . . . . . Garrison Access . | . . . . . . . . . . . . . . . . Terminal Hacks 8 | . . . 1 . . 2 . . . 1 . . 1 . 3 Open Door 4 | . . . . . . 2 . . . . . . . . 2 Open DSF 2 | . . . . . . . . . . 1 . . 1 . . Locate Traps 1 | . . . . . . . . . . . . . . . 1 Proto ID Catalog 1 | . . . 1 . . . . . . . . . . . . Fabricator Hacks . | . . . . . . . . . . . . . . . . Repair Station Hacks . | . . . . . . . . . . . . . . . . Recycling Unit Hacks 1 | . . . . . . . . 1 . . . . . . . Retrieve Components 1 | . . . . . . . . 1 . . . . . . . Scanalyzer 1 | . . . . . . . . . 1 . . . . . . Retrieve Study 1 | . . . . . . . . . 1 . . . . . . Garrison Access Hacks . | . . . . . . . . . . . . . . . . Unauthorized Hacks 3 | . . . . . . . . 2 . . . . . . 1 Terminals 3 | . . . . . . . . 2 . . . . . . 1 Botnet 3 | . . . . . . . . 2 . . . . . . 1 Fabricators . | . . . . . . . . . . . . . . . . Repair Stations . | . . . . . . . . . . . . . . . . Recycling Units . | . . . . . . . . . . . . . . . . Scanalyzers . | . . . . . . . . . . . . . . . . Garrison Access . | . . . . . . . . . . . . . . . . Data Cores Recovered . | . . . . . . . . . . . . . . . . Used . | . . . . . . . . . . . . . . . . Hacking Detections 22 | . . . . . . 3 1 6 1 4 . 1 . . 6 Full Trace Events 1 | . . . . . . . . 1 . . . . . . . Feedback Events . | . . . . . . . . . . . . . . . . Feedback Blocked . | . . . . . . . . . . . . . . . . Robot Schematics Acquired . | . . . . . . . . . . . . . . . . Robots Built . | . . . . . . . . . . . . . . . . Authchips . | . . . . . . . . . . . . . . . . Time . | . . . . . . . . . . . . . . . . Total Robot Build Rating . | . . . . . . . . . . . . . . . . Part Schematics Acquired . | . . . . . . . . . . . . . . . . Parts Built . | . . . . . . . . . . . . . . . . Authchips . | . . . . . . . . . . . . . . . . Time . | . . . . . . . . . . . . . . . . Total Part Build Rating . | . . . . . . . . . . . . . . . . Part Studies Acquired 1 | . . . . . . . . . 1 . . . . . . Parts Repaired . | . . . . . . . . . . . . . . . . Time . | . . . . . . . . . . . . . . . . Parts Recycled . | . . . . . . . . . . . . . . . . Recycled Matter . | . . . . . . . . . . . . . . . . Retrieved Matter . | . . . . . . . . . . . . . . . . Retrieved Components 1 | . . . . . . . . 1 . . . . . . . Parts Scanalyzed . | . . . . . . . . . . . . . . . . Part Schematics Acquired . | . . . . . . . . . . . . . . . . Parts Damaged . | . . . . . . . . . . . . . . . . Bothacking | -11 -10 -10 -10 -9 -8 -8 -7 -6 -5 -4 -4 -3 -2 -2 -1 ------------ Run | Yrd Mat Min Exi Min Mat Sto Fac Fac Fac Fac DSF Res Res DSF Acc Used RIF Installer . | . . . . . . . . . . . . . . . . Robots Hacked . | . . . . . . . . . . . . . . . . Non-combat . | . . . . . . . . . . . . . . . . Combat . | . . . . . . . . . . . . . . . . Robot Hacks Applied . | . . . . . . . . . . . . . . . . Relay Couplers Released . | . . . . . . . . . . . . . . . . Fabnet Peak Effective % . | . . . . . . . . . . . . . . . . Robots Rewired . | . . . . . . . . . . . . . . . . Allies Hacked . | . . . . . . . . . . . . . . . . Hacks Repelled . | . . . . . . . . . . . . . . . . Allies | -11 -10 -10 -10 -9 -8 -8 -7 -6 -5 -4 -4 -3 -2 -2 -1 -------- Run | Yrd Mat Min Exi Min Mat Sto Fac Fac Fac Fac DSF Res Res DSF Acc Total Allies . | . . . . . . . . . . . . . . . . Largest Group . | . . . . . . . . . . . . . . . . Highest-Rated Group . | . . . . . . . . . . . . . . . . Highest-Rated Ally . | . . . . . . . . . . . . . . . . Total Orders . | . . . . . . . . . . . . . . . . Ally Attacks . | . . . . . . . . . . . . . . . . Total Damage . | . . . . . . . . . . . . . . . . Kills . | . . . . . . . . . . . . . . . . Allies Corrupted . | . . . . . . . . . . . . . . . . Allies Melted . | . . . . . . . . . . . . . . . . Intel | -11 -10 -10 -10 -9 -8 -8 -7 -6 -5 -4 -4 -3 -2 -2 -1 ------- Run | Yrd Mat Min Exi Min Mat Sto Fac Fac Fac Fac DSF Res Res DSF Acc Active Infowar (turns) 1441 | 9 42 39 107 112 15 34 . 1 72 105 16 27 118 12 732 Optics 760 | . . . . . . . . . . . . . 16 12 732 Seismic 358 | 9 42 39 107 112 15 34 . . . . . . . . . Cloaking 620 | . . . . . . . . . 72 105 16 27 118 12 270 ECM 76 | . . . . . . . . 1 . . . . . . 75 Robot Analysis Total . | . . . . . . . . . . . . . . . . Derelict Logs Recovered . | . . . . . . . . . . . . . . . . Drone Launches . | . . . . . . . . . . . . . . . . Drone Recoveries . | . . . . . . . . . . . . . . . . Exploration | -11 -10 -10 -10 -9 -8 -8 -7 -6 -5 -4 -4 -3 -2 -2 -1 ------------- Run | Yrd Mat Min Exi Min Mat Sto Fac Fac Fac Fac DSF Res Res DSF Acc Turns Passed 1946 | 24 49 41 107 112 15 106 76 217 189 105 16 27 118 12 732 Spaces Moved 4796 | 30 87 76 206 197 27 186 179 493 617 253 61 112 351 44 1877 Core 871 | 30 87 76 206 197 17 180 47 . . . . . . . 31 Treads . | . . . . . . . . . . . . . . . . Legs . | . . . . . . . . . . . . . . . . Wheels . | . . . . . . . . . . . . . . . . Hover . | . . . . . . . . . . . . . . . . Flight 3925 | . . . . . 10 6 132 493 617 253 61 112 351 44 1846 Fastest Speed 18 | 50 50 50 50 50 35 35 34 34 20 18 24 24 19 22 25 Average Speed 33 | 50 50 50 50 50 44 49 39 34 25 23 24 24 23 25 32 Slowest Speed 50 | 50 50 50 50 50 50 50 50 34 35 24 24 24 25 28 50 Overloaded Moves 41 | . . . . . . . . . 16 . . . . . 25 Propulsion Burnouts . | . . . . . . . . . . . . . . . . Robots Hopped 12 | . . . . . . . . . 1 1 . . 1 . 9 Potential Cave-ins . | . . . . . . . . . . . . . . . . Cave-ins Triggered . | . . . . . . . . . . . . . . . . Exploration Rate (%) 28 | 3 24 25 60 53 4 52 7 20 16 9 67 3 13 48 50 Regions Visited 15 Branch Regions 4 Pre-discovered Areas . | . . . . . . . . . . . . . . . . Known Exits Taken 5 | . . . . . . . . 1 1 1 . 1 1 . . Unknown Exits Taken 8 | 1 1 1 1 1 1 1 1 . . . . . . . . Scrap Searched . | . . . . . . . . . . . . . . . . Spaces Dug 61 | . . . . . . 2 . 1 4 4 . . 7 . 43 Terrain Destroyed 118 | . . . . 57 . 2 . 1 4 4 . . 7 . 43 Melee 61 | . . . . . . 2 . 1 4 4 . . 7 . 43 Projectile . | . . . . . . . . . . . . . . . . AOE 57 | . . . . 57 . . . . . . . . . . . Terrain Rammed . | . . . . . . . . . . . . . . . . Walls Destroyed . | . . . . . . . . . . . . . . . . Machines Disabled . | . . . . . . . . . . . . . . . . Actions | -11 -10 -10 -10 -9 -8 -8 -7 -6 -5 -4 -4 -3 -2 -2 -1 --------- Run | Yrd Mat Min Exi Min Mat Sto Fac Fac Fac Fac DSF Res Res DSF Acc Total 5003 | 34 91 78 209 205 28 198 181 518 637 282 62 111 374 44 1951 Wait 27 | . . . . . . . . 2 3 11 . . 5 . 6 Move 4758 | 29 86 75 205 196 26 185 178 492 614 251 60 111 348 43 1859 Hop 11 | . . . . . . . . . 1 1 . . 1 . 8 Pick Up 13 | . 2 . 3 1 . . . 1 2 . 1 . 1 . 2 Fast Attach 38 | 2 1 1 . . 1 1 3 6 6 4 . . 6 . 7 Attach 9 | . . . . 1 1 2 . 1 1 1 . . . 1 1 Detach 12 | . 1 1 . 1 . 4 . . 1 2 . . 1 . 1 Swap 3 | . 1 . . . . . . . . 1 . . . . 1 Drop 15 | . . 1 1 1 . 2 . 2 1 1 1 . 2 . 3 Fire 10 | 3 . . . 5 . . . . 2 . . . . . . Melee 90 | . . . . . . 3 . 14 6 10 . . 10 . 47 Ram 1 | . . . . . . 1 . . . . . . . . . Kick . | . . . . . . . . . . . . . . . . Crush . | . . . . . . . . . . . . . . . . Escape Stasis 16 | . . . . . . . . . . . . . . . 16 Rewire . | . . . . . . . . . . . . . . . . Trap . | . . . . . . . . . . . . . . . . Miscellaneous . | . . . . . . . . . . . . . . . . Route ------- -11/Scrapyard -10/Materials (discovered 2 exits: [*Min x2]) -10/Mines -10/Exiles (discovered 2 exits: [*Min x2]) -9/Mines -8/Materials -8/Storage -7/Factory -6/Factory -5/Factory -4/Factory -4/DSF -3/Research -2/Research -2/DSF -1/Access To Epsilon Eridani History --------- Turn | Location | Event 7 | -11/Scrapyard | Discovered new exit (range 16) 25 | -11/Scrapyard | Entered Materials 53 | -10/Materials | Discovered new exit (range 16) 69 | -10/Materials | Discovered new exit (range 12) 74 | -10/Materials | Entered Mines 113 | -10/Mines | Deemed a non-threat by the Exiles lab entrance 113 | -10/Mines | Discovered new exit (range 5) 115 | -10/Mines | Entered Exiles 122 | -10/Exiles | Discovered new exit (range 15) 130 | -10/Exiles | Met 8R-AWN 139 | -10/Exiles | Met EX-HEX 153 | -10/Exiles | Met EX-BIN 158 | -10/Exiles | Aligned with FarCom system 159 | -10/Exiles | Given EX-Vault access code 170 | -10/Exiles | Opened EX-Vault 174 | -10/Exiles | Found Longsword +1 185 | -10/Exiles | Warned to stay clear of 0b10 Research branches 200 | -10/Exiles | Met EX-DEC 217 | -10/Exiles | Discovered new exit (range 11) 222 | -10/Exiles | Left Exiles lab with Longsword +1 222 | -10/Exiles | Entered Mines 242 | -9/Mines | Received a Rocket Launcher from a helpful Derelict 278 | -9/Mines | Assembled infested the area 301 | -9/Mines | Build established: Mutant 329 | -9/Mines | Discovered new exit (range 10) 334 | -9/Mines | Entered Materials 334 | -8/Materials | Evolved 4 slots: Propulsion x2, Utility x2 336 | -8/Materials | Discovered new exit (range 15) 349 | -8/Materials | Entered Storage 448 | -8/Storage | Core integrity fell below 50% 452 | -8/Storage | Discovered new exit (range 6) 455 | -8/Storage | Entered Factory 455 | -7/Factory | Evolved 2 slots: Propulsion x1, Utility x1 528 | -7/Factory | Discovered new exit (range 6) 531 | -7/Factory | Entered another Factory area 531 | -6/Factory | Evolved 2 slots: Utility x2 743 | -6/Factory | Discovered new exit (range 15) 747 | -6/Factory | Identified exit to Factory 748 | -6/Factory | Entered another Factory area 748 | -5/Factory | Evolved 2 slots: Propulsion x1, Utility x1 829 | -5/Factory | Central database locked down 934 | -5/Factory | Discovered new exit (range 15) 937 | -5/Factory | Identified exit to Factory 937 | -5/Factory | Entered another Factory area 937 | -4/Factory | Evolved 2 slots: Power x1, Propulsion x1 1042 | -4/Factory | Identified exit to DSF 1042 | -4/Factory | Entered DSF 1053 | -4/DSF | Discovered new exit (range 12) 1058 | -4/DSF | Identified exit to Research 1058 | -4/DSF | Entered Research 1058 | -3/Research | Evolved 2 slots: Utility x2 1075 | -3/Research | Build established: Scavenger-Sprinter 1083 | -3/Research | Discovered new exit (range 7) 1085 | -3/Research | Identified exit to Research 1085 | -3/Research | Entered another Research area 1085 | -2/Research | Evolved 2 slots: Utility x2 1198 | -2/Research | Identified exit to DSF 1203 | -2/Research | Entered DSF 1207 | -2/DSF | Discovered new exit (range 19) 1215 | -2/DSF | Identified exit to Access 1215 | -2/DSF | Entered Access 1215 | -1/Access | Evolved 2 slots: Propulsion x1, Utility x1 1242 | -1/Access | Lost 4 parts (4n) 1486 | -1/Access | Build established: Hacker-Sprinter 1509 | -1/Access | Spotted B-99 Colossus 1642 | -1/Access | Lost 3 parts (2n1u) 1842 | -1/Access | Spotted B-99 Colossus 1907 | -1/Access | Build established: Hacker-Mutant 1939 | -1/Access | Door terminal overloaded 1945 | -1/Access | Discovered new exit (range 6) 1947 | -1/Access | Identified exit to Surface 1947 | *** | Escaped! Last Messages --------------- 01886_ Acquired Prototype Flight Unit. 01886_ Identified Imp. Q-thruster. 01910_ Triggered Shock Trap. 01910_ The floor emits a surge of raw power. 01910_ System corrupted (+2). 01911_ Triggered Shock Trap. 01911_ The floor emits a surge of raw power. 01911_ System corrupted (+2). 01932_ Connecting with Terminal... 01939_ System overload, Sealed Barrier opened. 01939_ Terminal disabled. 01940_ W-44 Eye sends out distress signal. 01945_ ZGG06VWO3/MA1KR5UEHF2>|09WEHXX>Z 01945_ The Access Shell folds into the floor. 01945_ EXIT=FOUND 01946_ Field Propulsion Array destroyed. 01947_ EXIT=IDENTIFIED: SURFACE [Achievement: Speedrunner] [Achievement: True Flier] [Achievement: Travel Light] Map ----- +----------------------------------------------------+ | # + #??# + #???######?????? | | # #### #??# ## #??? #?????? | | # "" #??# #### ##= #??? #?????? | | # """ #??# ## #??? #?????? | | # "R #??########## #??? #?????? | | # """ #???????????# ""T"" #??? #?????? | | # "" #???????????# """"" #??? #?????? | | + #???????????###########??? #?????? | | # [ #????????????????????????? #????## | | ##########????????????????????????? ???? | | ##???? ###########################/##### | | #???? p g | | #?????! p p w p | | #??????????????## ####### ########## | | #???????????????# ""#?????# # | | #???????????????# "#?????# # | | #???????????????# T#?????# + | | #???????????????# ""#?????# # | | #???????????????# ""#?????# # | | #????hh????????## ""##????# #? " | | #??????????????# #????# #? """" | | #??????????????## ##????# #?? """"" | | ??????????????# #?????# #?? """"" | | # ???H?????????# #?????# #??? """"? | | ?###+###????????????# #?????# #??? " ? | | ????????????????????# @" #?????# #????###?? | | ????????????????????# "" #????## ##???????? | | ????????????????????# #????# ########? | | ????????????????????# #????# "" #? | | ????????????????????# #????# "T #? | | ????????????????????#""""""""""#????# ##### #? | | ???????????????????????????????????########### #? | | ???????????????????????????????????# # #? | | #??????????????????????????????????# + +? | | ?????????????????????????# # #? | | # ????????????BB????BB?????# # #? | | ??????????????????????BB????BB?????# # #? | | ???????????????????????????????????# # #? | | ???????????????????????????????????# % # #? | | ???????????????????????????????????# # #? | | ???????????????????????????????????########### #? | | ?????????????????????????????????????????????# #? | | ?????????????????????????????????????????????# #? | | ????????????????????????????????????????????## ## | | ????????????????????????????????????????????# # | | ????????????????????????????????????????????# | | ????????????????????????????????????????????# " | | ????????????????????????????????????????????# # | | ????????????????????????????????????????????###### | | ?????????????????????????????????????????????????? | +----------------------------------------------------+ Best States ------------- Heat Dissipation 52 Energy Generation 28 Energy Capacity 560 Matter Stores 300 Matter Capacity 300 Sight Range 20 Terrain Scan Density 10 ECM Strength 2 Cloak Strength 2 Additional Mass Support 9 Corruption Block 8 Melee Speed Boost 30 Evasion (%) 74 Targeting Accuracy 6 Armor Integrity Analysis 30 Defensive Hacking 56 Item Schematics ----------------- None Robot Schematics ------------------ None Fabricated ------------ Nothing Repaired ---------- Nothing Studied --------- VTOL Module | -5/Factory | Hacked Alien Tech Used ----------------- None Achievements -------------- Speedrunner Travel Light True Flier Challenges ------------ None Game ------ Seed StrikeStructuralScythe Manual? 0 Play Time 00:57:12 Cumulative 91.5 hours Start 2026.01.22 @ 21:32:33 End 2026.01.22 @ 22:41:45 Sessions 3 Manual Loads 0 Difficulty Rogue Special Mode None Game No. 37 Rogue 37 Adventurer 0 Explorer 0 Win Type 0 Total 3 Types 2/0/1/0/0/0/0/0/0/0 Lore% 46 Gallery% 53 Achievement% 44 Wizard Run 0 Options --------- Layout 0 ASCII 0 Keyboard 1 Movement Arrows Keybinds 0 Fullscreen 1 Font 18/SmallcapsGlow Map View 76x50 Zoom Use 0% Tactical HUD 1 Map Filters NONE Filters NONE Steam 1 RUN: 4244ada6-54e5-458c-bb58-cdfd52229e47